[Event "Masters Tournament (MTO)"]
[Site "Biel, Switzerland"]
[Date "2026.07.14"]
[Round "2.25"]
[White "Harish, Neeraj"]
[Black "Jelicic, Hugo"]
[Result "1/2-1/2"]
[TimeControl "100+30+30sec/move"]
[WhiteTitle "-"]
[BlackTitle "-"]
[WhiteFideId "30958130"]
[BlackFideId "1349040"]
[WhiteElo "2201"]
[BlackElo "1907"]

1. e4 {[%clk 01:40:56]} {[%emt 00:00:01]} c6 {[%clk 01:19:28]} {[%emt
00:21:35]} 2. d4 {[%clk 01:41:08]} {[%emt 00:00:18]} d5 {[%clk 01:19:48]}
{[%emt 00:00:09]} 3. e5 {[%clk 01:41:29]} {[%emt 00:00:08]} c5 {[%clk
01:20:14]} {[%emt 00:00:06]} 4. Nf3 {[%clk 01:41:49]} {[%emt 00:00:09]} Nc6
{[%clk 01:18:35]} {[%emt 00:02:10]} 5. dxc5 {[%clk 01:42:07]} {[%emt 00:00:11]}
e6 {[%clk 01:15:52]} {[%emt 00:03:14]} 6. a3 {[%clk 01:42:13]} {[%emt
00:00:24]} Bxc5 {[%clk 01:16:15]} {[%emt 00:00:07]} 7. b4 {[%clk 01:42:34]}
{[%emt 00:00:09]} Bb6 {[%clk 01:16:43]} {[%emt 00:00:02]} 8. Bb2 {[%clk
01:42:50]} {[%emt 00:00:13]} f6 {[%clk 01:11:58]} {[%emt 00:05:16]} 9. b5
{[%clk 01:34:54]} {[%emt 00:08:25]} Nxe5 {[%clk 01:10:08]} {[%emt 00:02:20]} 10.
Nxe5 {[%clk 01:33:46]} {[%emt 00:01:39]} fxe5 {[%clk 01:09:32]} {[%emt
00:01:06]} 11. Qh5+ {[%clk 01:32:35]} {[%emt 00:01:41]} Kf8 {[%clk 01:07:07]}
{[%emt 00:02:55]} 12. Qxe5 {[%clk 01:30:35]} {[%emt 00:02:30]} Qf6 {[%clk
01:05:37]} {[%emt 00:02:00]} 13. Qd6+ {[%clk 01:29:20]} {[%emt 00:01:44]} Qe7
{[%clk 01:06:06]} {[%emt 00:00:02]} 14. Qg3 {[%clk 01:25:42]} {[%emt 00:04:08]}
Nf6 {[%clk 01:05:15]} {[%emt 00:01:21]} 15. Nd2 {[%clk 01:11:17]} {[%emt
00:14:54]} Bc7 {[%clk 01:01:48]} {[%emt 00:03:57]} 16. Be5 {[%clk 01:07:44]}
{[%emt 00:04:04]} Bxe5 {[%clk 01:01:29]} {[%emt 00:00:48]} 17. Qxe5 {[%clk
01:08:04]} {[%emt 00:00:10]} Ng4 {[%clk 00:58:00]} {[%emt 00:04:00]} 18. Qg3
{[%clk 01:05:35]} {[%emt 00:02:59]} Qf6 {[%clk 00:46:56]} {[%emt 00:11:33]} 19.
O-O-O {[%clk 00:50:53]} {[%emt 00:15:12]} Nxf2 {[%clk 00:37:09]} {[%emt
00:10:18]} 20. Bd3 {[%clk 00:48:39]} {[%emt 00:02:44]} Nxh1 {[%clk 00:35:49]}
{[%emt 00:01:50]} 21. Rxh1 {[%clk 00:48:07]} {[%emt 00:01:01]} Ke8 {[%clk
00:35:00]} {[%emt 00:01:19]} 22. Rf1 {[%clk 00:45:29]} {[%emt 00:03:08]} Qe7
{[%clk 00:23:44]} {[%emt 00:11:47]} 23. Bxh7 {[%clk 00:38:52]} {[%emt
00:07:06]} Rf8 {[%clk 00:22:23]} {[%emt 00:01:51]} 24. Re1 {[%clk 00:32:28]}
{[%emt 00:06:54]} Bd7 {[%clk 00:18:55]} {[%emt 00:03:58]} 25. Qc7 {[%clk
00:27:27]} {[%emt 00:05:31]} Qxa3+ {[%clk 00:18:01]} {[%emt 00:01:24]} 26. Kb1
{[%clk 00:27:48]} {[%emt 00:00:10]} Qb4+ {[%clk 00:16:28]} {[%emt 00:02:03]} 27.
Kc1 {[%clk 00:28:08]} {[%emt 00:00:09]} Qa3+ {[%clk 00:07:33]} {[%emt
00:09:25]} 28. Kb1 {[%clk 00:28:30]} {[%emt 00:00:08]} Qb4+ {[%clk 00:08:02]}
{[%emt 00:00:01]} 29. Kc1 {[%clk 00:28:51]} {[%emt 00:00:10]} Rf6 {[%clk
00:08:28]} {[%emt 00:00:04]} 30. Qg3 {[%clk 00:20:37]} {[%emt 00:08:44]} Qe7
{[%clk 00:07:38]} {[%emt 00:01:19]} 31. Nf3 {[%clk 00:20:00]} {[%emt 00:01:07]}
Bxb5 {[%clk 00:04:36]} {[%emt 00:03:32]} 32. Nd4 {[%clk 00:16:53]} {[%emt
00:03:38]} Bd7 {[%clk 00:02:30]} {[%emt 00:02:36]} 33. Nf5 {[%clk 00:16:20]}
{[%emt 00:01:03]} Qf8 {[%clk 00:02:54]} {[%emt 00:00:05]} 34. Nd6+ {[%clk
00:14:54]} {[%emt 00:01:56]} Ke7 {[%clk 00:03:11]} {[%emt 00:00:13]} 35. Nxb7
{[%clk 00:13:48]} {[%emt 00:01:37]} Rf4 {[%clk 00:01:04]} {[%emt 00:02:37]} 36.
Qa3+ {[%clk 00:13:33]} {[%emt 00:00:44]} Kf6 {[%clk 00:01:31]} {[%emt
00:00:03]} 37. Qc3+ {[%clk 00:11:30]} {[%emt 00:02:33]} d4 {[%clk 00:02:00]}
{[%emt 00:00:01]} 38. Qg3 {[%clk 00:11:49]} {[%emt 00:00:12]} g5 {[%clk
00:02:16]} {[%emt 00:00:14]} 39. h4 {[%clk 00:10:45]} {[%emt 00:01:33]} Qh6
{[%clk 00:02:29]} {[%emt 00:00:17]} 40. Nc5 {[%clk 00:09:08]} {[%emt 00:02:08]}
gxh4 {[%clk 00:00:34]} {[%emt 00:02:24]} 41. Nxd7+ {[%clk 00:05:38]} {[%emt
00:04:01]} Ke7 {[%clk 00:00:50]} {[%emt 00:00:14]} 42. Qa3+ {[%clk 00:26:40]}
{[%emt 00:09:28]} Kxd7 {[%clk 00:27:57]} {[%emt 00:03:22]} 43. Bd3 {[%clk
00:26:29]} {[%emt 00:00:41]} Rf1+ {[%clk 00:20:12]} {[%emt 00:08:14]} 44. Kb2
{[%clk 00:25:47]} {[%emt 00:01:13]} Rb8+ {[%clk 00:13:46]} {[%emt 00:06:57]} 45.
Ka2 {[%clk 00:26:05]} {[%emt 00:00:12]} Rxe1 {[%clk 00:12:38]} {[%emt
00:01:37]} 46. Qxa7+ {[%clk 00:26:22]} {[%emt 00:00:13]} Kc6 {[%clk 00:11:28]}
{[%emt 00:01:40]} 47. Qxb8 {[%clk 00:26:33]} {[%emt 00:00:19]} Qe3 {[%clk
00:05:45]} {[%emt 00:06:13]} 48. Qc8+ {[%clk 00:24:26]} {[%emt 00:02:38]} Kd6
{[%clk 00:05:37]} {[%emt 00:00:38]} 49. Qd8+ {[%clk 00:23:10]} {[%emt
00:01:46]} Ke5 {[%clk 00:04:34]} {[%emt 00:01:33]} 50. Qh8+ {[%clk 00:22:52]}
{[%emt 00:00:47]} Kd5 {[%clk 00:03:16]} {[%emt 00:01:48]} 51. Qd8+ {[%clk
00:22:55]} {[%emt 00:00:27]} Ke5 {[%clk 00:03:38]} {[%emt 00:00:09]} 1/2-1/2

[Event "Masters Tournament (MTO)"]
[Site "Biel, Switzerland"]
[Date "2026.07.14"]
[Round "2.26"]
[White "Hajduk, Tomasz"]
[Black "Cervelli, Eduard"]
[Result "0-1"]
[TimeControl "100+30+30sec/move"]
[WhiteTitle "-"]
[BlackTitle "-"]
[WhiteFideId "21811415"]
[BlackFideId "1351800"]
[WhiteElo "1921"]
[BlackElo "2197"]

1. e4 {[%clk 01:40:57]} {[%emt 00:00:01]} c5 {[%clk 01:40:53]} {[%emt
00:00:07]} 2. Nf3 {[%clk 01:41:23]} {[%emt 00:00:04]} d6 {[%clk 01:40:34]}
{[%emt 00:00:49]} 3. d4 {[%clk 01:41:48]} {[%emt 00:00:06]} cxd4 {[%clk
01:40:58]} {[%emt 00:00:05]} 4. Nxd4 {[%clk 01:42:15]} {[%emt 00:00:03]} Nf6
{[%clk 01:41:03]} {[%emt 00:00:23]} 5. Nc3 {[%clk 01:42:41]} {[%emt 00:00:06]}
a6 {[%clk 01:41:26]} {[%emt 00:00:07]} 6. Bg5 {[%clk 01:42:55]} {[%emt
00:00:16]} e6 {[%clk 01:36:45]} {[%emt 00:05:10]} 7. f4 {[%clk 01:42:56]}
{[%emt 00:00:30]} Be7 {[%clk 01:37:05]} {[%emt 00:00:09]} 8. Qf3 {[%clk
01:42:52]} {[%emt 00:00:35]} Qc7 {[%clk 01:36:56]} {[%emt 00:00:39]} 9. O-O-O
{[%clk 01:42:16]} {[%emt 00:01:06]} Nbd7 {[%clk 01:37:01]} {[%emt 00:00:25]} 10.
g4 {[%clk 01:41:40]} {[%emt 00:01:06]} b5 {[%clk 01:34:33]} {[%emt 00:02:59]}
11. Bxf6 {[%clk 01:36:23]} {[%emt 00:05:47]} Nxf6 {[%clk 01:34:23]} {[%emt
00:00:40]} 12. g5 {[%clk 01:36:26]} {[%emt 00:00:28]} Nd7 {[%clk 01:34:43]}
{[%emt 00:00:10]} 13. h4 {[%clk 01:27:42]} {[%emt 00:09:15]} b4 {[%clk
01:28:06]} {[%emt 00:07:05]} 14. Nce2 {[%clk 01:26:25]} {[%emt 00:01:48]} Bb7
{[%clk 01:28:13]} {[%emt 00:00:22]} 15. h5 {[%clk 00:58:03]} {[%emt 00:28:53]}
Nc5 {[%clk 01:27:27]} {[%emt 00:01:15]} 16. Ng3 {[%clk 00:55:35]} {[%emt
00:02:59]} O-O {[%clk 01:14:23]} {[%emt 00:13:34]} 17. g6 {[%clk 00:48:17]}
{[%emt 00:07:49]} fxg6 {[%clk 01:06:29]} {[%emt 00:08:20]} 18. hxg6 {[%clk
00:48:22]} {[%emt 00:00:29]} h6 {[%clk 01:03:11]} {[%emt 00:03:47]} 19. Kb1
{[%clk 00:43:19]} {[%emt 00:05:33]} Bg5 {[%clk 00:53:28]} {[%emt 00:10:12]} 20.
f5 {[%clk 00:33:42]} {[%emt 00:10:07]} d5 {[%clk 00:51:49]} {[%emt 00:02:09]}
21. Qg4 {[%clk 00:28:45]} {[%emt 00:05:28]} Rac8 {[%clk 00:37:32]} {[%emt
00:14:47]} 22. fxe6 {[%clk 00:20:25]} {[%emt 00:10:55]} Rf4 {[%clk 00:30:54]}
{[%emt 00:05:02]} 23. Qe2 {[%clk 00:18:10]} {[%emt 00:02:46]} Nxe4 {[%clk
00:23:13]} {[%emt 00:08:10]} 24. Nxe4 {[%clk 00:10:15]} {[%emt 00:08:26]} Rxe4
{[%clk 00:23:33]} {[%emt 00:00:10]} 25. Qh2 {[%clk 00:09:40]} {[%emt 00:01:05]}
Bf4 {[%clk 00:10:41]} {[%emt 00:13:21]} 26. Qf2 {[%clk 00:09:21]} {[%emt
00:00:49]} Rf8 {[%clk 00:10:59]} {[%emt 00:00:13]} 27. Bg2 {[%clk 00:06:36]}
{[%emt 00:03:16]} Be3 {[%clk 00:00:56]} {[%emt 00:10:32]} 28. Qf7+ {[%clk
00:06:53]} {[%emt 00:00:13]} Rxf7 {[%clk 00:01:12]} {[%emt 00:00:14]} 29. gxf7+
{[%clk 00:07:19]} {[%emt 00:00:05]} Kf8 {[%clk 00:01:26]} {[%emt 00:00:15]} 30.
Bxe4 {[%clk 00:07:43]} {[%emt 00:00:06]} Qe5 {[%clk 00:00:35]} {[%emt
00:01:21]} 31. Nf5 {[%clk 00:01:20]} {[%emt 00:06:52]} Qxe6 {[%clk 00:00:47]}
{[%emt 00:00:19]} 32. Nxe3 {[%clk 00:01:14]} {[%emt 00:00:36]} Qxe4 {[%clk
00:01:10]} {[%emt 00:00:07]} 33. Rde1 {[%clk 00:00:59]} {[%emt 00:00:46]} d4
{[%clk 00:01:17]} {[%emt 00:00:22]} 34. Nd5 {[%clk 00:00:38]} {[%emt 00:00:51]}
Qxd5 {[%clk 00:01:12]} {[%emt 00:00:36]} 35. Rhf1 {[%clk 00:00:37]} {[%emt
00:00:30]} Bc6 {[%clk 00:01:31]} {[%emt 00:00:11]} 0-1

[Event "Masters Tournament (MTO)"]
[Site "Biel, Switzerland"]
[Date "2026.07.14"]
[Round "2.27"]
[White "Tkhoruk, Roman"]
[Black "Erne, Raphael"]
[Result "1-0"]
[TimeControl "100+30+30sec/move"]
[WhiteTitle "-"]
[BlackTitle "-"]
[WhiteFideId "34161589"]
[BlackFideId "1341928"]
[WhiteElo "1967"]
[BlackElo "2166"]

1. e4 {[%clk 01:40:57]} {[%emt 00:00:03]} c5 {[%clk 01:40:42]} {[%emt
00:00:19]} 2. Nf3 {[%clk 01:41:20]} {[%emt 00:00:07]} d6 {[%clk 01:40:54]}
{[%emt 00:00:17]} 3. Bb5+ {[%clk 01:41:39]} {[%emt 00:00:11]} Nd7 {[%clk
01:40:46]} {[%emt 00:00:37]} 4. O-O {[%clk 01:41:57]} {[%emt 00:00:12]} a6
{[%clk 01:40:49]} {[%emt 00:00:28]} 5. Bd3 {[%clk 01:42:10]} {[%emt 00:00:16]}
Ngf6 {[%clk 01:40:37]} {[%emt 00:00:42]} 6. c3 {[%clk 01:42:30]} {[%emt
00:00:11]} b5 {[%clk 01:40:25]} {[%emt 00:00:42]} 7. Bc2 {[%clk 01:42:48]}
{[%emt 00:00:12]} c4 {[%clk 01:39:37]} {[%emt 00:01:18]} 8. a4 {[%clk
01:43:05]} {[%emt 00:00:14]} Bb7 {[%clk 01:38:17]} {[%emt 00:01:49]} 9. axb5
{[%clk 01:43:01]} {[%emt 00:00:34]} axb5 {[%clk 01:38:34]} {[%emt 00:00:13]} 10.
Rxa8 {[%clk 01:43:20]} {[%emt 00:00:11]} Qxa8 {[%clk 01:34:41]} {[%emt
00:04:26]} 11. Na3 {[%clk 01:43:33]} {[%emt 00:00:17]} Bxe4 {[%clk 00:59:35]}
{[%emt 00:35:36]} 12. Bxe4 {[%clk 01:37:53]} {[%emt 00:06:09]} Nxe4 {[%clk
00:59:50]} {[%emt 00:00:15]} 13. Nxb5 {[%clk 01:38:11]} {[%emt 00:00:12]} Qa5
{[%clk 00:55:18]} {[%emt 00:05:02]} 14. Na3 {[%clk 01:35:44]} {[%emt 00:02:57]}
d5 {[%clk 00:53:39]} {[%emt 00:02:08]} 15. d3 {[%clk 01:34:58]} {[%emt
00:01:17]} cxd3 {[%clk 00:51:42]} {[%emt 00:02:27]} 16. Qxd3 {[%clk 01:35:07]}
{[%emt 00:00:21]} e6 {[%clk 00:49:54]} {[%emt 00:02:17]} 17. b4 {[%clk
01:18:19]} {[%emt 00:17:18]} Qb6 {[%clk 00:37:19]} {[%emt 00:13:05]} 18. Be3
{[%clk 01:15:57]} {[%emt 00:02:52]} Qb7 {[%clk 00:36:27]} {[%emt 00:01:22]} 19.
Nd2 {[%clk 01:05:13]} {[%emt 00:11:14]} Nxd2 {[%clk 00:31:29]} {[%emt
00:05:28]} 20. Bxd2 {[%clk 01:00:37]} {[%emt 00:05:07]} Be7 {[%clk 00:30:59]}
{[%emt 00:00:59]} 21. c4 {[%clk 00:54:00]} {[%emt 00:07:08]} Nf6 {[%clk
00:23:29]} {[%emt 00:07:59]} 22. c5 {[%clk 00:38:22]} {[%emt 00:16:09]} O-O
{[%clk 00:23:13]} {[%emt 00:00:45]} 23. Nc2 {[%clk 00:33:45]} {[%emt 00:05:10]}
Ne4 {[%clk 00:20:40]} {[%emt 00:03:01]} 24. Be3 {[%clk 00:31:04]} {[%emt
00:03:11]} Bf6 {[%clk 00:16:55]} {[%emt 00:04:15]} 25. b5 {[%clk 00:23:49]}
{[%emt 00:07:46]} Rb8 {[%clk 00:11:21]} {[%emt 00:06:03]} 26. c6 {[%clk
00:22:32]} {[%emt 00:01:46]} Qc7 {[%clk 00:10:34]} {[%emt 00:01:17]} 27. Nb4
{[%clk 00:22:02]} {[%emt 00:01:00]} Qa5 {[%clk 00:08:52]} {[%emt 00:02:13]} 28.
c7 {[%clk 00:15:28]} {[%emt 00:07:04]} Rc8 {[%clk 00:07:37]} {[%emt 00:01:44]}
29. Na6 {[%clk 00:15:17]} {[%emt 00:00:41]} Nd6 {[%clk 00:06:13]} {[%emt
00:01:55]} 30. b6 {[%clk 00:14:31]} {[%emt 00:01:16]} Nb7 {[%clk 00:04:56]}
{[%emt 00:01:47]} 31. Nb8 {[%clk 00:13:57]} {[%emt 00:01:05]} Qa4 {[%clk
00:01:44]} {[%emt 00:03:41]} 32. Rc1 {[%clk 00:06:47]} {[%emt 00:07:39]} d4
{[%clk 00:01:11]} {[%emt 00:01:04]} 33. Bd2 {[%clk 00:06:26]} {[%emt 00:00:51]}
Be5 {[%clk 00:00:31]} {[%emt 00:01:10]} 34. Qe4 {[%clk 00:05:14]} {[%emt
00:01:41]} 1-0

[Event "Masters Tournament (MTO)"]
[Site "Biel, Switzerland"]
[Date "2026.07.14"]
[Round "2.28"]
[White "Udelnov, Valentin"]
[Black "Arndt, Uwe"]
[Result "1-0"]
[TimeControl "100+30+30sec/move"]
[WhiteTitle "-"]
[BlackTitle "-"]
[WhiteFideId "16265734"]
[BlackFideId "24647713"]
[WhiteElo "2269"]
[BlackElo "2005"]

1. e4 {[%clk 01:37:22]} {[%emt 00:03:38]} c6 {[%clk 01:40:53]} {[%emt
00:00:08]} 2. d4 {[%clk 01:37:46]} {[%emt 00:00:05]} d5 {[%clk 01:41:19]}
{[%emt 00:00:04]} 3. e5 {[%clk 01:38:13]} {[%emt 00:00:03]} Bf5 {[%clk
01:41:35]} {[%emt 00:00:14]} 4. Nf3 {[%clk 01:38:38]} {[%emt 00:00:05]} e6
{[%clk 01:41:39]} {[%emt 00:00:26]} 5. Be2 {[%clk 01:38:43]} {[%emt 00:00:24]}
Nd7 {[%clk 01:40:43]} {[%emt 00:01:27]} 6. O-O {[%clk 01:39:06]} {[%emt
00:00:07]} Ne7 {[%clk 01:39:04]} {[%emt 00:02:08]} 7. c3 {[%clk 01:39:27]}
{[%emt 00:00:09]} c5 {[%clk 01:39:00]} {[%emt 00:00:35]} 8. dxc5 {[%clk
01:38:56]} {[%emt 00:01:01]} Nc6 {[%clk 01:39:13]} {[%emt 00:00:16]} 9. b4
{[%clk 01:34:32]} {[%emt 00:04:56]} a5 {[%clk 01:34:23]} {[%emt 00:05:19]} 10.
Nd4 {[%clk 01:29:51]} {[%emt 00:05:11]} Bxb1 {[%clk 01:33:31]} {[%emt
00:01:22]} 11. Rxb1 {[%clk 01:29:35]} {[%emt 00:00:46]} axb4 {[%clk 01:33:38]}
{[%emt 00:00:24]} 12. cxb4 {[%clk 01:29:37]} {[%emt 00:00:28]} Rxa2 {[%clk
01:28:12]} {[%emt 00:05:56]} 13. Bb5 {[%clk 01:16:05]} {[%emt 00:14:01]} Nxd4
{[%clk 01:20:26]} {[%emt 00:08:16]} 14. Qxd4 {[%clk 01:16:28]} {[%emt
00:00:07]} Be7 {[%clk 01:20:16]} {[%emt 00:00:40]} 15. Qg4 {[%clk 01:14:07]}
{[%emt 00:02:52]} Kf8 {[%clk 01:17:47]} {[%emt 00:02:58]} 16. f4 {[%clk
01:12:22]} {[%emt 00:02:15]} h5 {[%clk 01:16:15]} {[%emt 00:02:02]} 17. Qg3
{[%clk 01:04:24]} {[%emt 00:08:28]} g6 {[%clk 01:16:07]} {[%emt 00:00:38]} 18.
Qb3 {[%clk 01:04:34]} {[%emt 00:00:21]} Ra8 {[%clk 01:14:32]} {[%emt 00:02:05]}
19. Be3 {[%clk 01:00:22]} {[%emt 00:04:42]} Kg7 {[%clk 01:14:27]} {[%emt
00:00:35]} 20. Ra1 {[%clk 00:57:20]} {[%emt 00:03:32]} Qc7 {[%clk 01:14:34]}
{[%emt 00:00:23]} 21. Bd4 {[%clk 00:55:45]} {[%emt 00:02:06]} Rxa1 {[%clk
01:05:35]} {[%emt 00:09:29]} 22. Rxa1 {[%clk 00:54:11]} {[%emt 00:02:03]} Nb8
{[%clk 01:05:37]} {[%emt 00:00:27]} 23. Ra7 {[%clk 00:40:18]} {[%emt 00:14:24]}
Rc8 {[%clk 01:00:38]} {[%emt 00:05:29]} 24. f5 {[%clk 00:34:19]} {[%emt
00:06:29]} gxf5 {[%clk 00:59:44]} {[%emt 00:01:23]} 25. Qg3+ {[%clk 00:34:41]}
{[%emt 00:00:08]} Kf8 {[%clk 00:55:34]} {[%emt 00:04:40]} 26. Be3 {[%clk
00:31:52]} {[%emt 00:03:19]} Nc6 {[%clk 00:55:54]} {[%emt 00:00:10]} 27. Bh6+
{[%clk 00:30:41]} {[%emt 00:01:42]} Ke8 {[%clk 00:56:17]} {[%emt 00:00:07]} 28.
Qg8+ {[%clk 00:30:41]} {[%emt 00:00:29]} Kd7 {[%clk 00:56:42]} {[%emt
00:00:06]} 29. Qxf7 {[%clk 00:30:47]} {[%emt 00:00:24]} Re8 {[%clk 00:34:43]}
{[%emt 00:24:33]} 30. Bg5 {[%clk 00:20:51]} {[%emt 00:08:22]} d4 {[%clk
00:29:43]} {[%emt 00:05:30]} 31. Bxc6+ {[%clk 00:19:39]} {[%emt 00:01:42]} Qxc6
{[%clk 00:29:58]} {[%emt 00:00:15]} 32. Ra8 {[%clk 00:19:57]} {[%emt 00:00:12]}
1-0

[Event "Masters Tournament (MTO)"]
[Site "Biel, Switzerland"]
[Date "2026.07.14"]
[Round "2.29"]
[White "Hasenohr, Benedict"]
[Black "Petry, Martin"]
[Result "1-0"]
[TimeControl "100+30+30sec/move"]
[WhiteTitle "-"]
[BlackTitle "-"]
[WhiteFideId "1303309"]
[BlackFideId "1352318"]
[WhiteElo "2247"]
[BlackElo "1999"]

1. e4 {[%clk 01:40:55]} {[%emt 00:00:04]} g6 {[%clk 01:40:56]} {[%emt
00:00:04]} 2. d4 {[%clk 01:41:16]} {[%emt 00:00:09]} Bg7 {[%clk 01:41:21]}
{[%emt 00:00:06]} 3. Nc3 {[%clk 01:41:34]} {[%emt 00:00:12]} d6 {[%clk
01:41:41]} {[%emt 00:00:10]} 4. Be3 {[%clk 01:41:40]} {[%emt 00:00:23]} a6
{[%clk 01:41:59]} {[%emt 00:00:13]} 5. a4 {[%clk 01:41:43]} {[%emt 00:00:26]}
b6 {[%clk 01:41:10]} {[%emt 00:01:19]} 6. Qd2 {[%clk 01:40:18]} {[%emt
00:01:56]} Bb7 {[%clk 01:40:43]} {[%emt 00:00:57]} 7. f3 {[%clk 01:27:19]}
{[%emt 00:13:31]} Nd7 {[%clk 01:40:07]} {[%emt 00:01:06]} 8. h4 {[%clk
01:16:57]} {[%emt 00:10:52]} h5 {[%clk 01:37:49]} {[%emt 00:02:48]} 9. Nh3
{[%clk 01:17:02]} {[%emt 00:00:25]} e5 {[%clk 01:36:54]} {[%emt 00:01:25]} 10.
Ng5 {[%clk 01:16:52]} {[%emt 00:00:39]} Ngf6 {[%clk 01:32:01]} {[%emt
00:05:24]} 11. Bc4 {[%clk 01:14:20]} {[%emt 00:03:02]} O-O {[%clk 01:31:17]}
{[%emt 00:01:13]} 12. d5 {[%clk 01:12:31]} {[%emt 00:02:19]} Qe7 {[%clk
01:26:38]} {[%emt 00:05:09]} 13. O-O {[%clk 01:09:58]} {[%emt 00:03:03]} a5
{[%clk 01:24:55]} {[%emt 00:02:13]} 14. Nb5 {[%clk 01:09:20]} {[%emt 00:01:09]}
Nc5 {[%clk 01:24:24]} {[%emt 00:01:01]} 15. c3 {[%clk 01:09:16]} {[%emt
00:00:33]} Ba6 {[%clk 01:16:03]} {[%emt 00:08:51]} 16. Qe2 {[%clk 01:04:02]}
{[%emt 00:05:44]} Bxb5 {[%clk 01:08:41]} {[%emt 00:07:52]} 17. Bxb5 {[%clk
01:04:00]} {[%emt 00:00:32]} Ne8 {[%clk 01:03:51]} {[%emt 00:05:19]} 18. Qc4
{[%clk 01:01:54]} {[%emt 00:02:37]} f6 {[%clk 00:45:32]} {[%emt 00:18:49]} 19.
Nh3 {[%clk 01:01:45]} {[%emt 00:00:39]} f5 {[%clk 00:44:17]} {[%emt 00:01:45]}
20. b4 {[%clk 01:01:46]} {[%emt 00:00:29]} Nb7 {[%clk 00:42:38]} {[%emt
00:02:08]} 21. Bg5 {[%clk 01:00:07]} {[%emt 00:02:10]} Nf6 {[%clk 00:37:07]}
{[%emt 00:06:02]} 22. f4 {[%clk 00:49:06]} {[%emt 00:11:30]} Qf7 {[%clk
00:19:37]} {[%emt 00:18:00]} 23. Bc6 {[%clk 00:25:36]} {[%emt 00:24:00]} Rab8
{[%clk 00:19:03]} {[%emt 00:01:04]} 24. fxe5 {[%clk 00:24:52]} {[%emt
00:01:15]} dxe5 {[%clk 00:18:47]} {[%emt 00:00:45]} 25. Bxb7 {[%clk 00:25:14]}
{[%emt 00:00:08]} Rxb7 {[%clk 00:18:55]} {[%emt 00:00:22]} 26. Bxf6 {[%clk
00:24:32]} {[%emt 00:01:12]} Qxf6 {[%clk 00:16:22]} {[%emt 00:03:04]} 27. exf5
{[%clk 00:23:55]} {[%emt 00:01:07]} gxf5 {[%clk 00:16:26]} {[%emt 00:00:25]} 28.
Ng5 {[%clk 00:23:37]} {[%emt 00:00:48]} Qd6 {[%clk 00:14:21]} {[%emt 00:02:35]}
29. Qe2 {[%clk 00:19:43]} {[%emt 00:04:24]} Qg6 {[%clk 00:08:46]} {[%emt
00:06:04]} 30. Ne6 {[%clk 00:19:26]} {[%emt 00:00:48]} Re8 {[%clk 00:08:43]}
{[%emt 00:00:33]} 31. Qb5 {[%clk 00:10:20]} {[%emt 00:09:37]} Ra7 {[%clk
00:08:01]} {[%emt 00:01:11]} 32. Rxf5 {[%clk 00:09:32]} {[%emt 00:01:18]} Re7
{[%clk 00:03:24]} {[%emt 00:05:08]} 33. Raf1 {[%clk 00:08:23]} {[%emt
00:01:39]} c5 {[%clk 00:01:11]} {[%emt 00:02:42]} 34. Rg5 {[%clk 00:08:16]}
{[%emt 00:00:37]} Qe4 {[%clk 00:01:08]} {[%emt 00:00:33]} 35. Rxg7+ {[%clk
00:08:31]} {[%emt 00:00:14]} Rxg7 {[%clk 00:01:24]} {[%emt 00:00:14]} 36. Qe8+
{[%clk 00:08:56]} {[%emt 00:00:05]} Kh7 {[%clk 00:01:08]} {[%emt 00:00:47]} 37.
Qxh5+ {[%clk 00:09:19]} {[%emt 00:00:07]} 1-0